[Event "Live Chess"]
[Site "Chess.com"]
[Date "2024.06.02"]
[Round "-"]
[White "Ocelot32"]
[Black "juniortay"]
[Result "0-1"]
[WhiteElo "1373"]
[BlackElo "2407"]
[TimeControl "300"]
[EndTime "23:56:40 PDT"]
[Termination "juniortay won by resignation"]

1. e4 {[%clk 0:04:57.1]} 1... e5 {[%clk 0:04:59]} 2. Nf3 {[%clk 0:04:55.7]} 2...
Nf6 {[%clk 0:04:57.1]} 3. Nxe5 {[%clk 0:04:52.6]} 3... Nc6 {[%clk 0:04:55.7]} 4.
Nxc6 {[%clk 0:04:51.2]} 4... dxc6 {[%clk 0:04:54.4]} 5. d3 {[%clk 0:04:49.6]}
5... Bc5 {[%clk 0:04:49.8]} 6. Be2 {[%clk 0:04:47.2]} 6... h5 {[%clk 0:04:44.6]}
7. h3 {[%clk 0:04:46.1]} 7... Be6 {[%clk 0:04:38]} 8. c3 {[%clk 0:04:43.7]} 8...
Bb6 {[%clk 0:04:36.9]} 9. d4 {[%clk 0:04:42.8]} 9... Nxe4 {[%clk 0:04:33.5]} 10.
Nd2 {[%clk 0:04:28.8]} 10... Nxd2 {[%clk 0:04:27.4]} 11. Bxd2 {[%clk 0:04:27.4]}
11... Qd7 {[%clk 0:04:24.2]} 12. Bf3 {[%clk 0:04:20.7]} 12... O-O-O {[%clk
0:04:22.6]} 13. O-O {[%clk 0:04:16.1]} 13... g5 {[%clk 0:04:13]} 14. a4 {[%clk
0:04:13.9]} 14... g4 {[%clk 0:04:10.9]} 15. a5 {[%clk 0:04:10]} 15... Bxd4
{[%clk 0:04:04.4]} 16. cxd4 {[%clk 0:03:51.1]} 16... gxf3 {[%clk 0:04:03]} 17.
Qxf3 {[%clk 0:03:50]} 17... Bd5 {[%clk 0:04:01.5]} 18. Qb3 {[%clk 0:03:44.1]}
0-1

[Event "Live Chess"]
[Site "Chess.com"]
[Date "2024.06.02"]
[Round "-"]
[White "RichardABates"]
[Black "booktrunk"]
[Result "1-0"]
[WhiteElo "2360"]
[BlackElo "1508"]
[TimeControl "300"]
[EndTime "23:56:45 PDT"]
[Termination "RichardABates won by resignation"]

1. d4 {[%clk 0:04:57.7]} 1... b6 {[%clk 0:04:54.6]} 2. e4 {[%clk 0:04:55.8]}
2... Bb7 {[%clk 0:04:45.6]} 3. Bd3 {[%clk 0:04:54.2]} 3... e6 {[%clk 0:04:44.8]}
4. Nf3 {[%clk 0:04:52.5]} 4... h6 {[%clk 0:04:42.3]} 5. O-O {[%clk 0:04:49.4]}
5... Nf6 {[%clk 0:04:41.1]} 6. Nbd2 {[%clk 0:04:46.9]} 6... c5 {[%clk
0:04:37.7]} 7. c3 {[%clk 0:04:45.7]} 7... cxd4 {[%clk 0:04:35.7]} 8. cxd4 {[%clk
0:04:43.9]} 8... Bb4 {[%clk 0:04:34.3]} 9. Qe2 {[%clk 0:04:41.2]} 9... Bxd2
{[%clk 0:04:32]} 10. Bxd2 {[%clk 0:04:39.8]} 10... Nc6 {[%clk 0:04:29.7]} 11. a3
{[%clk 0:04:32.7]} 11... O-O {[%clk 0:04:27.5]} 12. e5 {[%clk 0:04:28.6]} 12...
Nd5 {[%clk 0:04:24.7]} 13. Qe4 {[%clk 0:04:25.8]} 13... g6 {[%clk 0:04:20.5]}
14. Bxh6 {[%clk 0:04:22.3]} 14... f5 {[%clk 0:04:09.2]} 15. exf6 {[%clk
0:04:17]} 15... Rxf6 {[%clk 0:04:07.1]} 16. Bg5 {[%clk 0:04:14.3]} 16... Qf8
{[%clk 0:03:59.7]} 17. Bxf6 {[%clk 0:04:11.5]} 17... Nxf6 {[%clk 0:03:57.8]} 18.
Qxg6+ {[%clk 0:04:09.7]} 18... Qg7 {[%clk 0:03:57.3]} 19. Qxg7+ {[%clk
0:04:01.5]} 19... Kxg7 {[%clk 0:03:57.2]} 1-0

[Event "Live Chess"]
[Site "Chess.com"]
[Date "2024.06.02"]
[Round "-"]
[White "Ziipyyy"]
[Black "Tatarinov_Maxim"]
[Result "0-1"]
[WhiteElo "1301"]
[BlackElo "2273"]
[TimeControl "300"]
[EndTime "23:56:49 PDT"]
[Termination "Tatarinov_Maxim won by checkmate"]

1. e4 {[%clk 0:04:59.5]} 1... c5 {[%clk 0:04:58.4]} 2. b3 {[%clk 0:04:58.6]}
2... d6 {[%clk 0:04:54.4]} 3. Bb2 {[%clk 0:04:50.3]} 3... Nc6 {[%clk 0:04:49.7]}
4. Nf3 {[%clk 0:04:43.1]} 4... e5 {[%clk 0:04:48.8]} 5. Bb5 {[%clk 0:04:34.2]}
5... Ne7 {[%clk 0:04:43.2]} 6. Na3 {[%clk 0:04:31.2]} 6... g6 {[%clk 0:04:41.4]}
7. Be2 {[%clk 0:04:23.5]} 7... Bg7 {[%clk 0:04:39.8]} 8. Nc4 {[%clk 0:04:21.2]}
8... O-O {[%clk 0:04:38]} 9. Ng5 {[%clk 0:04:15.9]} 9... h6 {[%clk 0:04:35.6]}
10. Nf3 {[%clk 0:04:12.9]} 10... b5 {[%clk 0:04:22.7]} 11. Ne3 {[%clk
0:04:09.5]} 11... Rb8 {[%clk 0:04:18.7]} 12. Nd5 {[%clk 0:04:02.6]} 12... Be6
{[%clk 0:04:14.9]} 13. Nxe7+ {[%clk 0:03:48.3]} 13... Qxe7 {[%clk 0:04:13]} 14.
O-O {[%clk 0:03:41.3]} 14... Kh7 {[%clk 0:04:05]} 15. d3 {[%clk 0:03:28.4]}
15... a5 {[%clk 0:03:57.5]} 16. Bc1 {[%clk 0:03:26]} 16... b4 {[%clk 0:03:52.6]}
17. Be3 {[%clk 0:03:24.4]} 17... Nd4 {[%clk 0:03:51.4]} 18. Nxd4 {[%clk
0:03:21.6]} 18... cxd4 {[%clk 0:03:45.3]} 19. Bd2 {[%clk 0:03:20.3]} 19... Rbc8
{[%clk 0:03:41.8]} 20. Qc1 {[%clk 0:03:17.7]} 20... Qc7 {[%clk 0:03:39.1]} 21.
c4 {[%clk 0:02:48.6]} 21... bxc3 {[%clk 0:03:36.8]} 22. Be1 {[%clk 0:02:44]}
22... a4 {[%clk 0:03:23.8]} 23. Qc2 {[%clk 0:02:39.4]} 23... axb3 {[%clk
0:03:22.2]} 24. axb3 {[%clk 0:02:38.3]} 24... Ra8 {[%clk 0:03:20.2]} 25. f4
{[%clk 0:02:15]} 25... Rxa1 {[%clk 0:03:15.4]} 26. f5 {[%clk 0:02:10.4]} 26...
gxf5 {[%clk 0:03:10.2]} 27. exf5 {[%clk 0:02:10.3]} 27... Bxf5 {[%clk
0:03:09.6]} 28. Rxf5 {[%clk 0:02:08.5]} 28... Rxe1+ {[%clk 0:03:08.1]} 29. Kf2
{[%clk 0:02:07.2]} 29... Ra1 {[%clk 0:03:06.3]} 30. Bd1 {[%clk 0:02:05.4]} 30...
Qa5 {[%clk 0:02:58.5]} 31. Qe2 {[%clk 0:02:02.2]} 31... Ra2 {[%clk 0:02:57.2]}
32. Bc2 {[%clk 0:02:01.1]} 32... Rxc2 {[%clk 0:02:52.9]} 33. Qxc2 {[%clk
0:01:59.6]} 33... Ra8 {[%clk 0:02:51.6]} 34. Kg3 {[%clk 0:01:57.4]} 34... Qa2
{[%clk 0:02:49.6]} 35. Qd1 {[%clk 0:01:53.8]} 35... Qd2 {[%clk 0:02:47.3]} 36.
Qf3 {[%clk 0:01:51.3]} 36... Ra2 {[%clk 0:02:40.1]} 37. Rxf7 {[%clk 0:01:47.6]}
37... Qg5+ {[%clk 0:02:37]} 38. Kh3 {[%clk 0:01:45.8]} 38... Qe3 {[%clk
0:02:26.5]} 39. Kg3 {[%clk 0:01:36.3]} 39... c2 {[%clk 0:02:22.7]} 40. Qxe3
{[%clk 0:01:31.1]} 40... dxe3 {[%clk 0:02:21.6]} 41. Rf1 {[%clk 0:01:30.8]}
41... Rb2 {[%clk 0:02:16.2]} 42. Rc1 {[%clk 0:01:28]} 42... Rxb3 {[%clk
0:02:15.3]} 43. Kf3 {[%clk 0:01:26.5]} 43... Rxd3 {[%clk 0:02:15.2]} 44. Rxc2
{[%clk 0:01:24.7]} 44... d5 {[%clk 0:02:11.8]} 45. Rc5 {[%clk 0:01:22]} 45...
e4+ {[%clk 0:02:09.5]} 46. Ke2 {[%clk 0:01:20.5]} 46... h5 {[%clk 0:02:05.3]}
47. Rc7 {[%clk 0:01:18.6]} 47... Kg6 {[%clk 0:02:03.9]} 48. h3 {[%clk 0:01:16]}
48... Bh6 {[%clk 0:02:02.8]} 49. g4 {[%clk 0:01:13.9]} 49... Rd2+ {[%clk
0:02:00.1]} 50. Ke1 {[%clk 0:01:12.4]} 50... hxg4 {[%clk 0:02:00]} 51. hxg4
{[%clk 0:01:11.3]} 51... Kg5 {[%clk 0:01:58.8]} 52. Rd7 {[%clk 0:01:10]} 52...
Kf4 {[%clk 0:01:57.4]} 53. g5 {[%clk 0:01:07.3]} 53... Bxg5 {[%clk 0:01:56]} 54.
Rf7+ {[%clk 0:01:06.9]} 54... Kg4 {[%clk 0:01:54.3]} 55. Rd7 {[%clk 0:01:06.5]}
55... Kf3 {[%clk 0:01:51]} 56. Rh7 {[%clk 0:01:01.2]} 56... Bf4 {[%clk 0:01:49]}
57. Rh3+ {[%clk 0:00:58.7]} 57... Bg3+ {[%clk 0:01:47.9]} 58. Rxg3+ {[%clk
0:00:51.7]} 58... Kxg3 {[%clk 0:01:47.8]} 59. Kf1 {[%clk 0:00:50.5]} 59... Kf3
{[%clk 0:01:44]} 60. Ke1 {[%clk 0:00:50.1]} 60... Rd3 {[%clk 0:01:42.7]} 61. Kf1
{[%clk 0:00:49]} 61... Rd1# {[%clk 0:01:42.6]} 0-1

[Event "Live Chess"]
[Site "Chess.com"]
[Date "2024.06.02"]
[Round "-"]
[White "willc-h99"]
[Black "GerardATHart"]
[Result "1-0"]
[WhiteElo "2627"]
[BlackElo "1378"]
[TimeControl "300"]
[EndTime "23:56:52 PDT"]
[Termination "willc-h99 won by resignation"]

1. Nf3 {[%clk 0:04:52.9]} 1... d5 {[%clk 0:04:58.3]} 2. e3 {[%clk 0:04:51]} 2...
c5 {[%clk 0:04:56.2]} 3. b3 {[%clk 0:04:47.9]} 3... Nc6 {[%clk 0:04:54.4]} 4.
Bb2 {[%clk 0:04:46.2]} 4... Bg4 {[%clk 0:04:49.4]} 5. Bb5 {[%clk 0:04:41.9]}
5... f6 {[%clk 0:04:42.9]} 6. d4 {[%clk 0:04:20.1]} 6... a6 {[%clk 0:04:36.2]}
7. Be2 {[%clk 0:04:15.1]} 7... Qc7 {[%clk 0:04:22.2]} 8. O-O {[%clk 0:04:08.5]}
8... e5 {[%clk 0:04:18.4]} 9. dxe5 {[%clk 0:04:05.2]} 9... fxe5 {[%clk
0:04:14.4]} 10. Qxd5 {[%clk 0:04:03.5]} 10... Rd8 {[%clk 0:04:12.4]} 11. Qc4
{[%clk 0:03:56.6]} 11... Nf6 {[%clk 0:04:08.1]} 12. Rd1 {[%clk 0:03:21.6]} 12...
Bd6 {[%clk 0:03:51.3]} 13. e4 {[%clk 0:02:46.9]} 13... b5 {[%clk 0:03:38.5]} 14.
Qd3 {[%clk 0:02:41.9]} 14... Nb4 {[%clk 0:03:23.4]} 15. Qd2 {[%clk 0:02:32.6]}
15... Nxe4 {[%clk 0:03:13.9]} 16. Qe3 {[%clk 0:02:30.9]} 16... Nxc2 {[%clk
0:03:00.4]} 17. Qxe4 {[%clk 0:02:29.4]} 17... Bxf3 {[%clk 0:02:53.9]} 18. Bxf3
{[%clk 0:02:23.8]} 18... Nxa1 {[%clk 0:02:50.9]} 19. Bxa1 {[%clk 0:02:01.3]}
19... O-O {[%clk 0:02:48.9]} 20. Nc3 {[%clk 0:01:59.9]} 20... Rf4 {[%clk
0:02:38.6]} 21. Qe2 {[%clk 0:01:57.2]} 21... Rdf8 {[%clk 0:02:16.6]} 22. Nd5
{[%clk 0:01:55.7]} 22... Qf7 {[%clk 0:02:02.2]} 23. Nxf4 {[%clk 0:01:53.9]}
23... exf4 {[%clk 0:01:56.5]} 24. Bd5 {[%clk 0:01:52.2]} 1-0

[Event "Live Chess"]
[Site "Chess.com"]
[Date "2024.06.02"]
[Round "-"]
[White "upoe610"]
[Black "JoeyCage"]
[Result "0-1"]
[WhiteElo "2185"]
[BlackElo "2401"]
[TimeControl "300"]
[EndTime "23:56:55 PDT"]
[Termination "JoeyCage won by resignation"]

1. c4 {[%clk 0:04:55.9]} 1... e6 {[%clk 0:04:58.7]} 2. g3 {[%clk 0:04:54.2]}
2... d5 {[%clk 0:04:57.4]} 3. Bg2 {[%clk 0:04:53.4]} 3... Nf6 {[%clk 0:04:56.4]}
4. Nf3 {[%clk 0:04:52.2]} 4... Be7 {[%clk 0:04:52.2]} 5. O-O {[%clk 0:04:51]}
5... O-O {[%clk 0:04:51]} 6. d4 {[%clk 0:04:49.5]} 6... Ne4 {[%clk 0:04:43.4]}
7. Qc2 {[%clk 0:04:43.1]} 7... c6 {[%clk 0:04:41.3]} 8. Nc3 {[%clk 0:04:39.1]}
8... Nxc3 {[%clk 0:04:39.9]} 9. bxc3 {[%clk 0:04:38.2]} 9... Nd7 {[%clk
0:04:35.9]} 10. e4 {[%clk 0:04:36.7]} 10... dxc4 {[%clk 0:04:29.3]} 11. e5
{[%clk 0:04:35.6]} 11... Nb6 {[%clk 0:04:26.9]} 12. h4 {[%clk 0:04:32.4]} 12...
Nd5 {[%clk 0:04:24.5]} 13. Ng5 {[%clk 0:04:29.8]} 13... Bxg5 {[%clk 0:04:20.2]}
14. Bxg5 {[%clk 0:04:29.7]} 14... Qa5 {[%clk 0:04:13.9]} 15. Rac1 {[%clk
0:04:24.8]} 15... Bd7 {[%clk 0:04:11.6]} 16. Rfe1 {[%clk 0:04:17.2]} 16... b5
{[%clk 0:04:09.5]} 17. h5 {[%clk 0:04:08.8]} 17... h6 {[%clk 0:04:07.1]} 18.
Bxh6 {[%clk 0:03:57.7]} 18... gxh6 {[%clk 0:04:03.6]} 19. Qd2 {[%clk 0:03:55.9]}
19... Kg7 {[%clk 0:03:58.8]} 20. Re4 {[%clk 0:03:53.4]} 20... Rh8 {[%clk
0:03:26.3]} 21. Rg4+ {[%clk 0:03:48.2]} 21... Kf8 {[%clk 0:03:20.5]} 22. Bxd5
{[%clk 0:03:42]} 22... exd5 {[%clk 0:03:09.7]} 23. Rf4 {[%clk 0:03:41]} 23...
Qd8 {[%clk 0:03:00.7]} 24. Rf6 {[%clk 0:03:39.4]} 24... Be6 {[%clk 0:02:56.7]}
25. Qf4 {[%clk 0:03:36.9]} 25... Qe7 {[%clk 0:02:55]} 26. a4 {[%clk 0:03:32.7]}
26... Ke8 {[%clk 0:02:49.6]} 27. Rb1 {[%clk 0:03:30.1]} 27... a6 {[%clk
0:02:45.6]} 28. Rf5 {[%clk 0:03:23.4]} 28... Bxf5 {[%clk 0:02:43.1]} 0-1

[Event "Live Chess"]
[Site "Chess.com"]
[Date "2024.06.02"]
[Round "-"]
[White "FlyingChessKestrel13"]
[Black "Duke_of_Bebington"]
[Result "1/2-1/2"]
[WhiteElo "2074"]
[BlackElo "1673"]
[TimeControl "300"]
[EndTime "23:57:03 PDT"]
[Termination "Game drawn by agreement"]

1. e4 {[%clk 0:04:56.4]} 1... e5 {[%clk 0:04:58.7]} 2. Nf3 {[%clk 0:04:54]} 2...
Nf6 {[%clk 0:04:56.4]} 3. Nc3 {[%clk 0:04:52.3]} 3... Nc6 {[%clk 0:04:55.1]} 4.
Bb5 {[%clk 0:04:50]} 4... Nd4 {[%clk 0:04:53.9]} 5. Bc4 {[%clk 0:04:46.5]} 5...
Nxe4 {[%clk 0:04:50.3]} 6. Nxe4 {[%clk 0:04:19]} 6... d5 {[%clk 0:04:47.8]} 7.
Nxe5 {[%clk 0:04:15]} 7... dxc4 {[%clk 0:04:37.8]} 8. O-O {[%clk 0:04:11.7]}
8... Be6 {[%clk 0:04:21.3]} 9. Re1 {[%clk 0:04:07.2]} 9... Be7 {[%clk
0:04:08.8]} 10. c3 {[%clk 0:04:04.8]} 10... Nf5 {[%clk 0:04:00.8]} 11. Qa4+
{[%clk 0:03:57.7]} 11... c6 {[%clk 0:03:57.4]} 12. g4 {[%clk 0:03:51.4]} 12...
b5 {[%clk 0:03:51.8]} 13. Qa6 {[%clk 0:03:48.8]} 13... Nd6 {[%clk 0:03:38.9]}
14. Qxc6+ {[%clk 0:03:46.8]} 14... Kf8 {[%clk 0:03:32.3]} 15. Nxd6 {[%clk
0:03:37.6]} 15... Bxd6 {[%clk 0:03:31]} 16. Qxb5 {[%clk 0:03:35.9]} 16... Rb8
{[%clk 0:03:22.7]} 17. Qa6 {[%clk 0:03:30.1]} 17... Qc7 {[%clk 0:03:15.6]} 18.
Nxc4 {[%clk 0:03:16]} 18... Bxc4 {[%clk 0:03:11.1]} 19. Qa4 {[%clk 0:03:11.3]}
19... Bxh2+ {[%clk 0:03:07.5]} 20. Kg2 {[%clk 0:03:07.7]} 20... Bd5+ {[%clk
0:03:06]} 21. Kf1 {[%clk 0:03:00.6]} 21... Bc4+ {[%clk 0:02:31.6]} 22. Kg2
{[%clk 0:02:58.7]} 22... h5 {[%clk 0:02:18.9]} 23. b3 {[%clk 0:02:53.1]} 23...
Bd5+ {[%clk 0:02:09.2]} 24. Kf1 {[%clk 0:02:48.5]} 24... hxg4 {[%clk 0:02:06.8]}
25. Ba3+ {[%clk 0:02:47.7]} 25... Kg8 {[%clk 0:02:04.6]} 26. Qxg4 {[%clk
0:02:43.6]} 26... Bf4 {[%clk 0:01:53.6]} 27. Re7 {[%clk 0:02:37.1]} 27... Rh1+
{[%clk 0:01:30.7]} 28. Ke2 {[%clk 0:02:35]} 28... Bc4+ {[%clk 0:01:25.4]} 29.
bxc4 {[%clk 0:02:31.3]} 29... Qxc4+ {[%clk 0:01:23.5]} 30. Kf3 {[%clk
0:02:30.9]} 30... Rxa1 {[%clk 0:01:15.9]} 31. Qxf4 {[%clk 0:02:27.2]} 31...
Qxf4+ {[%clk 0:01:14.3]} 32. Kxf4 {[%clk 0:02:26.4]} 32... Rxa2 {[%clk
0:01:13.5]} 33. Bc5 {[%clk 0:02:22.5]} 33... Rxd2 {[%clk 0:01:11]} 34. Bxa7
{[%clk 0:02:19.9]} 34... Rf8 {[%clk 0:01:00.1]} 35. Bd4 {[%clk 0:02:18.3]} 35...
f6 {[%clk 0:00:58.4]} 36. Ke3 {[%clk 0:02:17]} 36... Ra2 {[%clk 0:00:56.6]} 37.
Kd3 {[%clk 0:02:16.1]} 37... Raa8 {[%clk 0:00:56]} 38. c4 {[%clk 0:02:14.8]}
38... Rfe8 {[%clk 0:00:52.4]} 1/2-1/2

[Event "Live Chess"]
[Site "Chess.com"]
[Date "2024.06.02"]
[Round "-"]
[White "Tushinskiy"]
[Black "vincents82"]
[Result "1-0"]
[WhiteElo "2278"]
[BlackElo "2002"]
[TimeControl "300"]
[EndTime "23:57:18 PDT"]
[Termination "Tushinskiy won by resignation"]

1. d4 {[%clk 0:04:57.3]} 1... d5 {[%clk 0:04:57]} 2. c3 {[%clk 0:04:57.2]} 2...
Nf6 {[%clk 0:04:55.5]} 3. Nf3 {[%clk 0:04:53.6]} 3... Bf5 {[%clk 0:04:54.4]} 4.
Bf4 {[%clk 0:04:52.6]} 4... e6 {[%clk 0:04:53]} 5. Nbd2 {[%clk 0:04:49]} 5... c5
{[%clk 0:04:51.5]} 6. Bg3 {[%clk 0:04:48.9]} 6... Nc6 {[%clk 0:04:49.8]} 7. e3
{[%clk 0:04:48]} 7... Qb6 {[%clk 0:04:48.5]} 8. Qc1 {[%clk 0:04:46.7]} 8... Be7
{[%clk 0:04:46.7]} 9. Be2 {[%clk 0:04:45.8]} 9... h6 {[%clk 0:04:45.5]} 10. O-O
{[%clk 0:04:45]} 10... O-O {[%clk 0:04:44.9]} 11. Re1 {[%clk 0:04:43.9]} 11...
Ne4 {[%clk 0:04:43.8]} 12. Nxe4 {[%clk 0:04:41.7]} 12... Bxe4 {[%clk 0:04:40.3]}
13. Ne5 {[%clk 0:04:40.6]} 13... Nxe5 {[%clk 0:04:38.7]} 14. dxe5 {[%clk
0:04:37.1]} 14... Rfd8 {[%clk 0:04:31.8]} 15. h3 {[%clk 0:04:29.4]} 15... Rac8
{[%clk 0:04:30.4]} 16. Bf1 {[%clk 0:04:27.2]} 16... d4 {[%clk 0:04:28.2]} 17.
exd4 {[%clk 0:04:26.2]} 17... cxd4 {[%clk 0:04:27.2]} 18. Rxe4 {[%clk
0:04:25.2]} 18... dxc3 {[%clk 0:04:23.1]} 19. bxc3 {[%clk 0:04:25.1]} 19... Rd3
{[%clk 0:04:19.2]} 20. Bxd3 {[%clk 0:04:22.8]} 1-0

[Event "Live Chess"]
[Site "Chess.com"]
[Date "2024.06.02"]
[Round "-"]
[White "Ksenia_2013"]
[Black "JanMur7"]
[Result "0-1"]
[WhiteElo "970"]
[BlackElo "2260"]
[TimeControl "300"]
[EndTime "23:57:20 PDT"]
[Termination "JanMur7 won by checkmate"]

1. e4 {[%clk 0:04:57.5]} 1... g6 {[%clk 0:04:59]} 2. Nc3 {[%clk 0:04:53.9]} 2...
Bg7 {[%clk 0:04:58.5]} 3. Bc4 {[%clk 0:04:52.3]} 3... c5 {[%clk 0:04:57.7]} 4.
Nf3 {[%clk 0:04:50.5]} 4... Nc6 {[%clk 0:04:56]} 5. O-O {[%clk 0:04:48.4]} 5...
e6 {[%clk 0:04:55.4]} 6. b3 {[%clk 0:04:45]} 6... Nge7 {[%clk 0:04:54.5]} 7. Bb2
{[%clk 0:04:43.2]} 7... O-O {[%clk 0:04:53.3]} 8. Ng5 {[%clk 0:04:36.8]} 8... d5
{[%clk 0:04:45.7]} 9. Qg4 {[%clk 0:04:34.3]} 9... dxc4 {[%clk 0:04:43.3]} 10.
Qh4 {[%clk 0:04:31.7]} 10... h6 {[%clk 0:04:41]} 11. Bc1 {[%clk 0:03:58.5]}
11... hxg5 {[%clk 0:04:37.7]} 12. Qxg5 {[%clk 0:03:56.8]} 12... cxb3 {[%clk
0:04:35.3]} 13. cxb3 {[%clk 0:03:54.2]} 13... Nf5 {[%clk 0:04:33.6]} 14. exf5
{[%clk 0:03:52.5]} 14... Qxg5 {[%clk 0:04:31.9]} 15. fxe6 {[%clk 0:03:49.5]}
15... Bxe6 {[%clk 0:04:29.8]} 16. Ne4 {[%clk 0:03:45.5]} 16... Qg4 {[%clk
0:04:27.2]} 17. Nxc5 {[%clk 0:03:41.4]} 17... Bxa1 {[%clk 0:04:23.5]} 18. Nxe6
{[%clk 0:03:36.6]} 18... fxe6 {[%clk 0:04:21.7]} 19. d3 {[%clk 0:03:31.4]} 19...
Bd4 {[%clk 0:04:18.8]} 20. Bh6 {[%clk 0:03:29]} 20... Rxf2 {[%clk 0:04:16.9]}
21. Rxf2 {[%clk 0:03:25.5]} 21... Qd1# {[%clk 0:04:16.5]} 0-1

[Event "Live Chess"]
[Site "Chess.com"]
[Date "2024.06.02"]
[Round "-"]
[White "Dhaydon19"]
[Black "Bradfield133"]
[Result "1-0"]
[WhiteElo "2673"]
[BlackElo "1872"]
[TimeControl "300"]
[EndTime "23:57:44 PDT"]
[Termination "Dhaydon19 won by resignation"]

1. d4 {[%clk 0:04:57.5]} 1... d6 {[%clk 0:04:56.4]} 2. Nf3 {[%clk 0:04:57.1]}
2... Bg4 {[%clk 0:04:54]} 3. g3 {[%clk 0:04:56.4]} 3... Nd7 {[%clk 0:04:49.6]}
4. Bg2 {[%clk 0:04:50.3]} 4... e5 {[%clk 0:04:46.6]} 5. dxe5 {[%clk 0:04:46]}
5... dxe5 {[%clk 0:04:43.9]} 6. O-O {[%clk 0:04:42.3]} 6... Ngf6 {[%clk
0:04:41.4]} 7. c4 {[%clk 0:04:40.7]} 7... Be7 {[%clk 0:04:38.9]} 8. Nc3 {[%clk
0:04:38.8]} 8... O-O {[%clk 0:04:37]} 9. Qc2 {[%clk 0:04:36.5]} 9... c6 {[%clk
0:04:32]} 10. Rd1 {[%clk 0:04:35.3]} 10... Qc7 {[%clk 0:04:30]} 11. b3 {[%clk
0:04:33.2]} 11... Rfe8 {[%clk 0:04:20.5]} 12. Bb2 {[%clk 0:04:30.7]} 12... Rad8
{[%clk 0:04:07.7]} 13. Ng5 {[%clk 0:04:25.6]} 13... h6 {[%clk 0:03:56.1]} 14.
Nge4 {[%clk 0:04:24.2]} 14... Nxe4 {[%clk 0:03:45]} 15. Nxe4 {[%clk 0:04:23]}
15... Nf6 {[%clk 0:03:42.9]} 16. Nxf6+ {[%clk 0:04:19.4]} 16... Bxf6 {[%clk
0:03:41.2]} 17. Be4 {[%clk 0:04:18.8]} 17... Rxd1+ {[%clk 0:03:30.8]} 18. Rxd1
{[%clk 0:04:15.4]} 18... Rd8 {[%clk 0:03:30.7]} 19. Rd3 {[%clk 0:04:13.3]} 19...
Rxd3 {[%clk 0:03:15.9]} 20. Qxd3 {[%clk 0:04:10.9]} 20... Qe7 {[%clk 0:02:52.8]}
21. f3 {[%clk 0:04:05.4]} 21... Bc8 {[%clk 0:02:37.8]} 22. Bc1 {[%clk
0:04:03.3]} 22... Qd7 {[%clk 0:02:24]} 23. Be3 {[%clk 0:03:59.3]} 23... a6
{[%clk 0:02:05.3]} 24. g4 {[%clk 0:03:52.1]} 24... Bg5 {[%clk 0:01:49]} 25. Bxg5
{[%clk 0:03:47.4]} 25... Qxd3 {[%clk 0:01:44.3]} 26. exd3 {[%clk 0:03:44.7]}
26... hxg5 {[%clk 0:01:43.6]} 27. Kf2 {[%clk 0:03:43.3]} 27... f6 {[%clk
0:01:39.7]} 28. b4 {[%clk 0:03:39.9]} 28... Kf7 {[%clk 0:01:38]} 29. Ke3 {[%clk
0:03:38.7]} 29... Ke6 {[%clk 0:01:34.9]} 30. Bf5+ {[%clk 0:03:36.7]} 1-0

[Event "Live Chess"]
[Site "Chess.com"]
[Date "2024.06.02"]
[Round "-"]
[White "matt1979"]
[Black "KeithArkell"]
[Result "0-1"]
[WhiteElo "1396"]
[BlackElo "2416"]
[TimeControl "300"]
[EndTime "23:58:06 PDT"]
[Termination "KeithArkell won by resignation"]

1. f4 {[%clk 0:04:59.1]} 1... d5 {[%clk 0:04:58.7]} 2. e3 {[%clk 0:04:56.7]}
2... Nf6 {[%clk 0:04:56.8]} 3. Nf3 {[%clk 0:04:55.7]} 3... Bg4 {[%clk
0:04:56.3]} 4. Be2 {[%clk 0:04:52.3]} 4... Nbd7 {[%clk 0:04:55.8]} 5. d4 {[%clk
0:04:49.6]} 5... Ne4 {[%clk 0:04:54.3]} 6. Nbd2 {[%clk 0:04:46.3]} 6... Ndf6
{[%clk 0:04:53.1]} 7. Nxe4 {[%clk 0:04:43.5]} 7... Nxe4 {[%clk 0:04:52.2]} 8.
Nd2 {[%clk 0:04:40.5]} 8... Bxe2 {[%clk 0:04:51.4]} 9. Qxe2 {[%clk 0:04:37.7]}
9... Nxd2 {[%clk 0:04:50.6]} 10. Bxd2 {[%clk 0:04:35.6]} 10... c6 {[%clk
0:04:50.1]} 11. O-O {[%clk 0:04:34.3]} 11... g6 {[%clk 0:04:49.6]} 12. Qg4
{[%clk 0:04:27.2]} 12... e6 {[%clk 0:04:48.3]} 13. Rf3 {[%clk 0:04:23.6]} 13...
Qf6 {[%clk 0:04:47.3]} 14. Rg3 {[%clk 0:04:16.8]} 14... Qf5 {[%clk 0:04:46.3]}
15. Qxf5 {[%clk 0:04:14.9]} 15... gxf5 {[%clk 0:04:45.6]} 16. Rh3 {[%clk
0:04:05.7]} 16... h5 {[%clk 0:04:43.8]} 17. b3 {[%clk 0:04:02.6]} 17... Be7
{[%clk 0:04:41.4]} 18. Be1 {[%clk 0:03:58.4]} 18... Kd7 {[%clk 0:04:40.2]} 19.
Bh4 {[%clk 0:03:55.7]} 19... Ba3 {[%clk 0:04:37.8]} 20. Rd1 {[%clk 0:03:47.7]}
20... Rac8 {[%clk 0:04:35.4]} 21. Bf6 {[%clk 0:03:43.9]} 21... Rh7 {[%clk
0:04:33.6]} 22. c4 {[%clk 0:03:34.2]} 22... Be7 {[%clk 0:04:32.1]} 23. Bxe7
{[%clk 0:03:30.8]} 23... Kxe7 {[%clk 0:04:32]} 24. c5 {[%clk 0:03:27.3]} 24...
a5 {[%clk 0:04:31.2]} 25. a3 {[%clk 0:03:24.4]} 25... b6 {[%clk 0:04:29.9]} 26.
b4 {[%clk 0:03:16.6]} 26... axb4 {[%clk 0:04:28.3]} 27. axb4 {[%clk 0:03:15.4]}
27... Ra8 {[%clk 0:04:25.8]} 28. Rc1 {[%clk 0:03:05.7]} 28... b5 {[%clk
0:04:24.1]} 29. Rf3 {[%clk 0:02:54.6]} 29... Ra3 {[%clk 0:04:21.2]} 30. Kf2
{[%clk 0:02:50]} 30... Rg7 {[%clk 0:04:20.2]} 31. g3 {[%clk 0:02:44.9]} 31...
Ra2+ {[%clk 0:04:19]} 32. Kg1 {[%clk 0:02:40.9]} 32... h4 {[%clk 0:04:18.3]} 33.
Rb1 {[%clk 0:02:26.6]} 33... h3 {[%clk 0:04:16.1]} 34. Rf2 {[%clk 0:02:17.7]}
34... Ra3 {[%clk 0:04:14]} 35. Rf3 {[%clk 0:02:14.6]} 35... Rg8 {[%clk
0:04:13.3]} 36. Rf2 {[%clk 0:02:10.3]} 36... Rga8 {[%clk 0:04:09.8]} 37. Rf3
{[%clk 0:02:07.8]} 37... Rd3 {[%clk 0:04:06.6]} 38. Kf2 {[%clk 0:01:58.4]} 38...
Ra2+ {[%clk 0:04:04.6]} 39. Kg1 {[%clk 0:01:56.3]} 39... Rdd2 {[%clk 0:04:04]}
40. g4 {[%clk 0:01:51.3]} 40... Rg2+ {[%clk 0:04:03]} 41. Kf1 {[%clk 0:01:47.4]}
41... Rxh2 {[%clk 0:04:02.4]} 42. Rg3 {[%clk 0:01:38.1]} 42... Rh1+ {[%clk
0:04:01.4]} 43. Rg1 {[%clk 0:01:37.2]} 43... Rxg1+ {[%clk 0:04:00.8]} 44. Kxg1
{[%clk 0:01:36.3]} 44... fxg4 {[%clk 0:04:00.4]} 45. Kh1 {[%clk 0:01:25.7]}
45... Kf6 {[%clk 0:03:56.4]} 0-1